bitfinex-derivatives/quotes_BTCF0:USTF0_20230101
["timestamp","ask_amount","ask_price","bid_price","bid_amount"]
[1672601629172,0.48463222,16629.0,16628.0,1.051]
[1672601629487,0.48463222,16629.0,16628.0,0.001]
[1672601629909,0.48463222,16629.0,16628.0,1.051]
[1672601635899,0.18393222,16629.0,16628.0,1.051]
[1672601636106,0.48463222,16629.0,16628.0,1.051]
[1672601646629,0.48463222,16629.0,16628.0,1.05078397]
[1672601648935,0.18393222,16629.0,16628.0,1.05078397]
[1672601649152,0.48463222,16629.0,16628.0,1.05078397]
[1672601656079,0.18393222,16629.0,16628.0,1.05078397]
[1672601656401,0.48463222,16629.0,16628.0,1.05078397]
[1672601673865,0.18393222,16629.0,16628.0,1.05078397]
[1672601694994,0.18393222,16629.0,16628.0,1.05057958]
[1672601697627,0.18382267,16629.0,16628.0,1.05057958]
[1672601720212,0.48452267,16629.0,16628.0,1.05057958]
[1672601721046,0.18382267,16629.0,16628.0,1.05057958]
[1672601721260,0.48452267,16629.0,16628.0,1.05057958]
[1672601729669,0.18382267,16629.0,16628.0,1.05057958]
[1672601729881,0.48452267,16629.0,16628.0,1.05057958]
[1672601730407,0.18382267,16629.0,16628.0,1.05057958]
[1672601730615,0.48452267,16629.0,16628.0,1.05057958]
[1672601732095,0.18382267,16629.0,16628.0,1.05057958]
[1672601732302,0.48452267,16629.0,16628.0,1.05057958]
[1672601734077,0.18382267,16629.0,16628.0,1.05057958]
[1672601734297,0.48452267,16629.0,16628.0,1.05057958]
[1672601738703,0.18382267,16629.0,16628.0,1.05057958]
[1672601739335,0.48452267,16629.0,16628.0,1.05057958]
[1672601741027,0.18382267,16629.0,16628.0,1.05057958]
[1672601741235,0.48452267,16629.0,16628.0,1.05057958]
[1672601751017,0.18382267,16629.0,16628.0,1.05043311]
[1672601751235,0.48452267,16629.0,16628.0,1.05043311]
[1672601762046,0.18382267,16629.0,16628.0,1.05043311]
[1672601762261,0.48452267,16629.0,16628.0,1.05043311]
[1672601763004,0.18382267,16629.0,16628.0,1.05043311]
[1672601763313,0.48452267,16629.0,16628.0,1.05043311]
[1672601767841,0.18382267,16629.0,16628.0,1.05043311]
[1672601768055,0.48452267,16629.0,16628.0,1.05043311]
[1672601769943,0.4843912,16629.0,16628.0,1.05043311]
[1672601783931,0.1836912,16629.0,16628.0,1.05043311]
[1672601784141,0.4843912,16629.0,16628.0,1.05043311]
[1672601788028,0.1836912,16629.0,16628.0,1.05043311]
[1672601788238,0.4843912,16629.0,16628.0,1.05043311]
[1672601820197,0.4843912,16629.0,16628.0,1.05033777]
[1672601841440,0.4347,16629.0,16628.0,1.05033777]
[1672601847953,0.134,16629.0,16628.0,1.05033777]
[1672601848164,0.4347,16629.0,16628.0,1.05033777]
[1672601852365,0.134,16629.0,16628.0,1.05033777]
[1672601860359,0.134,16629.0,16628.0,1.65193777]
[1672601862145,0.0683,16629.0,16628.0,1.65193777]
[1672601864881,0.0683,16629.0,16628.0,1.95263777]
[1672601868555,0.0683,16629.0,16628.0,1.65193777]
[1672601868766,0.0683,16629.0,16628.0,1.95263777]
[1672601874660,0.0683,16629.0,16628.0,1.65193777]
[1672601874867,0.0683,16629.0,16628.0,1.95263777]
[1672601886743,0.0683,16629.0,16628.0,1.65193777]
[1672601886951,0.0683,16629.0,16628.0,1.95263777]
[1672601894841,0.6259,16633.0,16629.0,0.05]
[1672601895163,0.3195,16633.0,16632.0,1.6516]
[1672601895373,0.05,16633.0,16632.0,1.6516]
[1672601896524,0.074,16633.0,16632.0,1.6516]
[1672601896737,0.05,16633.0,16632.0,1.6516]
[1672601896945,0.074,16633.0,16632.0,1.6616]
[1672601911136,0.074,16633.0,16632.0,0.01]
[1672601911759,0.074,16633.0,16632.0,0.06]
[1672601913032,0.074,16633.0,16632.0,0.01]
[1672601915655,0.3747,16633.0,16632.0,0.01]
[1672601918071,0.074,16633.0,16632.0,0.01]
[1672601918282,0.3747,16633.0,16632.0,0.01]
[1672601941303,0.3747,16633.0,16632.0,0.00978066]
[1672601943929,0.074,16633.0,16632.0,0.00978066]
[1672601944136,0.3747,16633.0,16632.0,0.00978066]
[1672601945821,0.074,16633.0,16632.0,0.00978066]
[1672601949924,0.3747,16633.0,16632.0,0.00978066]
[1672601965161,0.3747,16633.0,16632.0,1.05978066]
[1672601969362,0.074,16633.0,16632.0,1.05978066]
[1672601969579,0.3747,16633.0,16632.0,1.05978066]
[1672601979038,0.074,16633.0,16632.0,1.05978066]
[1672601979249,0.3747,16633.0,16632.0,1.05978066]
[1672601996075,0.3747,16633.0,16632.0,1.05956727]
[1672602003748,0.074,16633.0,16632.0,1.05956727]
[1672602010474,0.024,16633.0,16632.0,1.05956727]
[1672602019208,0.02380898,16633.0,16632.0,1.05956727]
[1672602032552,0.02380898,16633.0,16632.0,1.36026727]
[1672602032862,0.02380898,16633.0,16632.0,1.05956727]
[1672602067765,0.02380898,16633.0,16632.0,1.66116727]
[1672602068712,0.02380898,16633.0,16632.0,1.96186727]
[1672602070713,0.02380898,16633.0,16632.0,1.96175442]
[1672602077328,0.02380898,16633.0,16632.0,1.66105442]
[1672602077540,0.02380898,16633.0,16632.0,1.96175442]
[1672602082899,0.02380898,16633.0,16632.0,0.91175442]
[1672602084897,0.02380898,16633.0,16632.0,1.96175442]
[1672602088676,0.02380898,16633.0,16632.0,1.66105442]
[1672602088883,0.02380898,16633.0,16632.0,1.96175442]
[1672602094255,0.02380898,16633.0,16632.0,1.66105442]
[1672602095082,0.32450898,16633.0,16632.0,1.66105442]
[1672602100024,0.02380898,16633.0,16632.0,1.66105442]
[1672602100242,0.32450898,16633.0,16632.0,1.66105442]
[1672602101812,0.32450898,16633.0,16632.0,1.05945442]
[1672602109385,0.02380898,16633.0,16632.0,1.05945442]
[1672602109588,0.32450898,16633.0,16632.0,1.05945442]
[1672602115585,0.02380898,16633.0,16632.0,1.05945442]
[1672602115904,0.32450898,16633.0,16632.0,1.05945442]
[1672602116743,0.32450898,16633.0,16632.0,1.0593934]
[1672602127882,0.02380898,16633.0,16632.0,1.0593934]
[1672602134925,0.02380898,16633.0,16632.0,1.6609934]
[1672602138409,0.02380898,16633.0,16632.0,1.9616934]
[1672602161734,0.02367881,16633.0,16632.0,1.9616934]
[1672602166147,0.02367881,16633.0,16632.0,1.6609934]
[1672602166357,0.02367881,16633.0,16632.0,1.9616934]
[1672602168991,0.02367881,16633.0,16632.0,1.6609934]
[1672602169305,0.02367881,16633.0,16632.0,1.9616934]
[1672602178764,0.02367881,16633.0,16632.0,1.6609934]
[1672602178978,0.02367881,16633.0,16632.0,1.9616934]
[1672602188849,0.02367881,16633.0,16632.0,1.6609934]
[1672602194213,0.02367881,16633.0,16632.0,1.9616934]
[1672602199466,0.02367881,16633.0,16632.0,1.6609934]
[1672602199681,0.02367881,16633.0,16632.0,1.9616934]
[1672602206098,0.02367881,16633.0,16632.0,1.6609934]
[1672602206409,0.02367881,16633.0,16632.0,1.9616934]
[1672602212616,0.02367881,16633.0,16632.0,1.96161427]
[1672602214079,0.02367881,16633.0,16632.0,1.66091427]
[1672602214293,0.02367881,16633.0,16632.0,1.96161427]
[1672602218917,0.02367881,16633.0,16632.0,1.66091427]
[1672602229222,0.02367881,16633.0,16632.0,1.96161427]
[1672602240986,0.02367881,16633.0,16632.0,1.66091427]
[1672602243409,0.133,16633.0,16632.0,1.6526]
[1672602247190,0.133,16633.0,16632.0,1.9533]
[1672602249394,0.133,16633.0,16632.0,1.051]
[1672602249605,0.4337,16633.0,16632.0,0.001]
[1672602253918,0.05,16632.0,16630.0,1.05]
[1672602254129,0.3007,16631.0,16630.0,1.05]
[1672602255075,0.3007,16631.0,16630.0,1.052]
[1672602256329,0.3177,16631.0,16630.0,1.052]
[1672602279042,0.017,16631.0,16630.0,1.052]
[1672602294278,0.3177,16631.0,16630.0,1.052]
[1672602296799,0.017,16631.0,16630.0,1.052]
[1672602297009,0.3177,16631.0,16630.0,1.052]
[1672602297855,0.3177,16631.0,16630.0,0.002]
[1672602298494,0.05,16630.0,16628.0,1.05]
[1672602298691,0.3007,16629.0,16628.0,1.05]
[1672602299848,0.3177,16629.0,16628.0,1.053]
[1672602305106,0.017,16629.0,16628.0,1.053]
[1672602305313,0.3177,16629.0,16628.0,1.053]
[1672602308793,0.3007,16629.0,16628.0,1.05]
[1672602309001,0.4077,16629.0,16628.0,1.05]
[1672602322026,0.107,16629.0,16628.0,1.05]
[1672602322234,0.4077,16629.0,16628.0,1.05]
[1672602324022,0.107,16629.0,16628.0,1.05]
[1672602324237,0.4077,16629.0,16628.0,1.05]
[1672602327814,0.107,16629.0,16628.0,1.05]
[1672602328009,0.4077,16629.0,16628.0,1.05]
[1672602352100,0.4077,16629.0,16628.0,1.04993934]
[1672602369970,0.4077,16629.0,16626.0,1.04993934]
[1672602370180,0.3007,16627.0,16626.0,1.04993934]
[1672602372065,0.3157,16627.0,16626.0,1.05293934]
[1672602376484,0.015,16627.0,16626.0,1.05293934]
[1672602376691,0.3157,16627.0,16626.0,1.05293934]
[1672602388251,0.4077,16627.0,16626.0,1.04993934]
[1672602388886,0.107,16627.0,16626.0,1.04993934]
[1672602389200,0.4077,16627.0,16626.0,1.04993934]
[1672602389835,0.4337,16627.0,16626.0,1.04993934]
[1672602396243,0.4337,16627.0,16625.0,1.04993934]
[1672602396454,0.05,16626.0,16625.0,1.04993934]
[1672602397499,0.157,16626.0,16625.0,1.04993934]
[1672602400241,0.4577,16626.0,16625.0,1.04993934]
[1672602402558,0.4577,16626.0,16625.0,0.94494541]
[1672602404547,0.4577,16626.0,16625.0,0.85045087]
[1672602406756,0.4577,16626.0,16625.0,0.76540579]
[1672602408642,0.4577,16626.0,16625.0,0.68886522]
[1672602412113,0.157,16626.0,16625.0,0.68886522]
[1672602412321,0.4577,16626.0,16625.0,0.68886522]
[1672602417475,0.4577,16626.0,16625.0,0.6199787]
[1672602421045,0.4577,16626.0,16623.0,0.6199787]
[1672602421250,0.3007,16624.0,16623.0,0.6199787]
[1672602423043,0.3157,16624.0,16623.0,0.6229787]
[1672602434800,0.015,16624.0,16623.0,0.6229787]
[1672602435011,0.3157,16624.0,16623.0,0.6229787]
[1672602440900,0.015,16624.0,16623.0,0.6229787]
[1672602441112,0.3157,16624.0,16623.0,0.6229787]
[1672602447626,0.05,16623.0,16619.0,0.9736787]
[1672602447837,0.3007,16622.0,16619.0,0.9736787]
[1672602448045,0.05,16621.0,16619.0,0.9736787]
[1672602449108,0.05,16621.0,16619.0,0.6729787]
[1672602449847,0.05,16621.0,16620.0,0.05]
[1672602450470,0.065,16621.0,16620.0,0.05]
[1672602450896,0.05,16621.0,16620.0,0.05]
[1672602451099,0.065,16621.0,16620.0,0.05]
[1672602456258,0.065,16621.0,16619.0,0.3007]
[1672602458039,0.065,16621.0,16618.0,0.05]
[1672602458251,0.065,16621.0,16619.0,0.3007]
[1672602458874,0.065,16621.0,16620.0,0.05]
[1672602459729,0.05,16621.0,16620.0,0.05]
[1672602459933,0.064,16621.0,16620.0,0.05]
[1672602460143,0.05,16621.0,16620.0,0.05]
[1672602460354,0.065,16621.0,16620.0,0.05]
[1672602473920,0.015,16621.0,16620.0,0.05]
[1672602477386,0.065,16621.0,16620.0,0.05]
[1672602488429,0.365,16621.0,16620.0,0.05]
[1672602489899,0.365,16621.0,16619.0,0.3007]
[1672602491059,0.35,16621.0,16619.0,0.3007]
[1672602491270,0.352,16621.0,16619.0,0.4267]
[1672602494625,0.0770213,16620.0,16619.0,0.4267]
[1672602496527,0.0790213,16620.0,16619.0,0.4267]
[1672602498521,0.002,16620.0,16619.0,0.4267]
[1672602501780,0.002,16620.0,16619.0,0.42649949]
[1672602503671,0.002,16620.0,16619.0,0.126]
[1672602503885,0.002,16620.0,16619.0,0.4267]
[1672602505039,0.002,16620.0,16619.0,0.126]
[1672602505248,0.002,16620.0,16619.0,0.4267]
[1672602505461,0.0790213,16620.0,16619.0,0.4267]
[1672602509970,0.0790213,16620.0,16619.0,0.126]
[1672602520697,0.0790213,16620.0,16619.0,0.176]
[1672602523214,0.0790213,16620.0,16619.0,0.4767]
[1672602524052,0.0790213,16620.0,16619.0,0.176]
[1672602524267,0.0790213,16620.0,16619.0,0.4767]
[1672602525000,0.0790213,16620.0,16619.0,0.176]
[1672602525210,0.0790213,16620.0,16619.0,0.4767]
[1672602525841,0.0790213,16620.0,16619.0,0.176]
[1672602526161,0.0790213,16620.0,16619.0,0.4767]
[1672602527000,0.0790213,16620.0,16619.0,0.4267]
[1672602529943,0.0790213,16620.0,16619.0,0.126]
[1672602531935,0.07894903,16620.0,16619.0,0.126]
[1672602536150,0.07894903,16620.0,16619.0,0.176]
[1672602539407,0.07894903,16620.0,16619.0,0.4767]
[1672602541926,0.00192773,16620.0,16619.0,0.4767]
[1672602542563,0.00192773,16620.0,16619.0,1.0783]
[1672602558848,0.00192773,16620.0,16619.0,0.7776]
[1672602559060,0.00192773,16620.0,16619.0,1.0783]
[1672602580514,0.00192773,16620.0,16619.0,1.07812702]
[1672602593649,0.00192773,16620.0,16619.0,0.77742702]
[1672602593859,0.00192773,16620.0,16619.0,1.07812702]
[1672602606795,0.00047823,16620.0,16619.0,1.07812702]
[1672602611102,0.00047823,16620.0,16619.0,0.77742702]
[1672602611311,0.00047823,16620.0,16619.0,1.07812702]
[1672602614985,0.00047823,16620.0,16619.0,0.77742702]
[1672602615201,0.00047823,16620.0,16619.0,1.07812702]
[1672602618454,0.37749953,16620.0,16619.0,1.07812702]
[1672602625291,0.00047823,16620.0,16619.0,1.07812702]
[1672602625501,0.37749953,16620.0,16619.0,1.07812702]
[1672602625706,0.00047823,16620.0,16619.0,1.07812702]
[1672602625918,0.37749953,16620.0,16619.0,1.07812702]
[1672602626970,0.37749953,16620.0,16619.0,0.77742702]
[1672602627171,0.37749953,16620.0,16619.0,1.07812702]
[1672602628015,0.07749953,16620.0,16619.0,1.07812702]
[1672602628227,0.37749953,16620.0,16619.0,1.07812702]
[1672602628439,0.00047823,16620.0,16619.0,1.07812702]
[1672602628647,0.37749953,16620.0,16619.0,1.07812702]
[1672602632010,0.37749953,16620.0,16619.0,0.77742702]
[1672602632224,0.37749953,16620.0,16619.0,1.07812702]
[1672602636012,0.37749953,16620.0,16619.0,0.77742702]
[1672602636220,0.37749953,16620.0,16619.0,1.07812702]
[1672602639688,0.37749953,16620.0,16619.0,0.77742702]
[1672602640211,0.37749953,16620.0,16619.0,1.07812702]
[1672602656192,0.37749953,16620.0,16619.0,1.07796542]
[1672602660939,0.37749953,16620.0,16619.0,0.77726542]
[1672602661148,0.37749953,16620.0,16619.0,1.07796542]
[1672602673022,0.37749953,16620.0,16619.0,0.77726542]
[1672602673228,0.37749953,16620.0,16619.0,1.07796542]
[1672602673446,0.00047823,16620.0,16619.0,1.07796542]
[1672602673655,0.37749953,16620.0,16619.0,1.07796542]
[1672602682476,0.37749953,16620.0,16619.0,0.77726542]
[1672602682682,0.37749953,16620.0,16619.0,1.07796542]
[1672602685946,0.37749953,16620.0,16619.0,0.77726542]
[1672602686161,0.37749953,16620.0,16619.0,1.07796542]
[1672602690051,0.37749953,16620.0,16619.0,0.77726542]
[1672602690259,0.37749953,16620.0,16619.0,1.07796542]
[1672602703415,0.37749953,16620.0,16619.0,0.77726542]
[1672602703627,0.37749953,16620.0,16619.0,1.07796542]
[1672602706459,0.37749953,16620.0,16619.0,1.07783981]
[1672602709612,0.37749953,16620.0,16619.0,0.77713981]
[1672602709831,0.37749953,16620.0,16619.0,1.07783981]
[1672602719281,0.37749953,16620.0,16619.0,0.77713981]
[1672602719810,0.37749953,16620.0,16619.0,1.07783981]
[1672602738825,0.37749953,16620.0,16619.0,0.77713981]
[1672602739479,0.37749953,16620.0,16619.0,1.07783981]
[1672602745902,0.37749953,16620.0,16619.0,0.77713981]
[1672602746110,0.37749953,16620.0,16619.0,1.07783981]
[1672602751784,0.37749953,16620.0,16619.0,0.77713981]
[1672602752097,0.37749953,16620.0,16619.0,1.07783981]
[1672602754198,0.37749953,16620.0,16619.0,0.77713981]
[1672602754411,0.37749953,16620.0,16619.0,1.07783981]
[1672602757044,0.37749953,16620.0,16619.0,0.77713981]
[1672602757362,0.37749953,16620.0,16619.0,1.07783981]
[1672602757562,0.37749953,16620.0,16619.0,1.07772192]
[1672602759983,0.37749953,16620.0,16619.0,0.77702192]
[1672602760195,0.37749953,16620.0,16619.0,1.07772192]
[1672602775944,0.37749953,16620.0,16619.0,0.77702192]
[1672602776156,0.37749953,16620.0,16619.0,1.07772192]
[1672602783291,0.37749953,16620.0,16619.0,1.02772192]
[1672602809253,0.37749953,16620.0,16619.0,1.02750164]
[1672602815871,0.37749953,16620.0,16619.0,0.72680164]
[1672602816071,0.37749953,16620.0,16619.0,1.02750164]
[1672602825751,0.37749953,16620.0,16619.0,0.72680164]
[1672602826060,0.37749953,16620.0,16619.0,1.02750164]
[1672602827748,0.37749953,16620.0,16619.0,0.72680164]
[1672602827958,0.37749953,16620.0,16619.0,1.02750164]
[1672602835743,0.37749953,16620.0,16619.0,0.72680164]
[1672602835958,0.37749953,16620.0,16619.0,1.02750164]
[1672602839000,0.37749953,16620.0,16619.0,0.72680164]
[1672602839212,0.37749953,16620.0,16619.0,1.02750164]
[1672602863608,0.37749953,16620.0,16619.0,0.72680164]
[1672602863927,0.37749953,16620.0,16619.0,1.02750164]
[1672602864243,0.37749953,16620.0,16619.0,1.02735101]
[1672602872018,0.37749953,16620.0,16619.0,0.72665101]
[1672602872219,0.37749953,16620.0,16619.0,1.02735101]
[1672602876639,0.37749953,16620.0,16619.0,0.72665101]
[1672602876852,0.37749953,16620.0,16619.0,1.02735101]
[1672602881155,0.37749953,16620.0,16619.0,0.42575101]
[1672602881361,0.37749953,16620.0,16619.0,0.12505101]
[1672602882302,0.67749953,16620.0,16619.0,0.12505101]
[1672602882519,0.67749953,16620.0,16619.0,0.11935101]
[1672602882730,0.67749953,16620.0,16619.0,0.08225101]
[1672602888606,0.67749953,16620.0,16617.0,0.3007]
[1672602888821,0.3770213,16618.0,16617.0,0.3007]
[1672602889760,0.05,16617.0,16615.0,0.3007]
[1672602889976,0.3770213,16616.0,16615.0,0.3007]
[1672602891970,0.3910213,16616.0,16615.0,0.3047]
[1672602893766,0.3910213,16616.0,16615.0,0.004]
[1672602894085,0.3910213,16616.0,16615.0,0.3047]
[1672602916668,0.3910213,16616.0,16615.0,0.004]
[1672602916885,0.3910213,16616.0,16615.0,0.3047]
[1672602920464,0.3920213,16616.0,16615.0,0.3047]
[1672602920771,0.3920213,16616.0,16615.0,0.004]
[1672602920996,0.3920213,16616.0,16615.0,0.3047]
[1672602921829,0.3900213,16616.0,16615.0,0.3037]
[1672602935708,0.3900213,16616.0,16615.0,0.30362475]
[1672602944945,0.3900213,16616.0,16615.0,0.00292475]
[1672602946207,0.3900213,16616.0,16615.0,0.30362475]
[1672602946632,0.3900213,16616.0,16615.0,0.00292475]
[1672602947900,0.3900213,16616.0,16615.0,0.30362475]
[1672602950624,0.3900213,16616.0,16615.0,0.00292475]
[1672602976077,0.6907213,16616.0,16615.0,0.00292475]
[1672602979871,0.3900213,16616.0,16615.0,0.00292475]
[1672602980072,0.6907213,16616.0,16615.0,0.00292475]
[1672602980797,0.3900213,16616.0,16615.0,0.00292475]
[1672602981009,0.6907213,16616.0,16615.0,0.00292475]
[1672602982175,0.3900213,16616.0,16615.0,0.00292475]
[1672602982386,0.6907213,16616.0,16615.0,0.00292475]
[1672602985008,0.3900213,16616.0,16615.0,0.00292475]
[1672602985217,0.6907213,16616.0,16615.0,0.00292475]
[1672602987325,0.6907213,16616.0,16615.0,0.00274665]
[1672602990069,0.3900213,16616.0,16615.0,0.00274665]
[1672602990279,0.6907213,16616.0,16615.0,0.00274665]
[1672602990696,0.3900213,16616.0,16615.0,0.00274665]
[1672602991116,0.6907213,16616.0,16615.0,0.00274665]
[1672602991742,0.3900213,16616.0,16615.0,0.00274665]
[1672602991951,0.6907213,16616.0,16615.0,0.00274665]
[1672602992800,0.3900213,16616.0,16615.0,0.00274665]
[1672602993001,0.6907213,16616.0,16615.0,0.00274665]
[1672602996372,0.69064714,16616.0,16615.0,0.00274665]
[1672602996809,0.38994714,16616.0,16615.0,0.00274665]
[1672602996998,0.69064714,16616.0,16615.0,0.00274665]
[1672603004985,0.05,16615.0,16611.0,0.05]
[1672603005199,0.37694714,16612.0,16610.0,0.3007]
[1672603005621,0.05,16611.0,16610.0,0.3007]
[1672603006990,0.065,16611.0,16610.0,0.3007]
[1672603035074,0.065,16611.0,16608.0,0.05]
[1672603035283,0.065,16611.0,16610.0,0.3007]
[1672603042217,0.063,16611.0,16608.0,0.3007]
[1672603042428,0.37694714,16609.0,16608.0,0.3007]
[1672603043902,0.05,16608.0,16606.0,0.05]
[1672603044108,0.05,16608.0,16607.0,0.3007]
[1672603045266,0.068,16608.0,16607.0,0.3007]
[1672603052308,0.068,16608.0,16605.0,0.3507]
[1672603052523,0.37694714,16606.0,16605.0,0.3007]
[1672603053885,0.39194714,16606.0,16605.0,0.3007]
[1672603058199,0.015,16606.0,16605.0,0.3007]
[1672603080815,0.015,16606.0,16604.0,0.05]
[1672603081025,0.015,16606.0,16605.0,0.3007]
[1672603081441,0.015,16606.0,16604.0,0.05]
[1672603081651,0.015,16606.0,16605.0,0.3007]
[1672603084703,0.015,16606.0,16605.0,0.3507]
[1672603087764,0.05,16611.0,16605.0,1.04192949]
[1672603087765,0.37694714,16610.0,16605.0,1.04192949]
[1672603087961,0.37694714,16612.0,16609.0,0.3007]
[1672603088172,0.37694714,16612.0,16611.0,0.3007]
[1672603089433,0.41694714,16612.0,16611.0,0.3007]
[1672603097530,0.41694714,16612.0,16610.0,0.05]
[1672603097740,0.41694714,16612.0,16611.0,0.3007]
[1672603098587,0.38694714,16612.0,16611.0,0.3007]
[1672603099109,0.38594714,16612.0,16611.0,0.3077]
[1672603099330,0.009,16612.0,16611.0,0.3077]
[1672603100371,0.38594714,16612.0,16611.0,0.3077]
[1672603103638,0.38594714,16612.0,16611.0,0.007]
[1672603103846,0.38594714,16612.0,16611.0,0.3077]
[1672603104482,0.009,16612.0,16611.0,0.9093]
[1672603105114,0.37704714,16612.0,16611.0,0.9093]
[1672603106164,0.37794714,16612.0,16611.0,0.9023]
[1672603110367,0.37694714,16612.0,16611.0,0.9223]
[1672603110781,0.37694714,16612.0,16611.0,0.9023]
[1672603110992,0.37694714,16612.0,16611.0,0.9223]
[1672603114894,0.37694714,16612.0,16611.0,0.02]
[1672603115213,0.37694714,16612.0,16611.0,0.9223]
[1672603127826,0.37694714,16612.0,16611.0,0.3207]
[1672603139803,0.37694714,16612.0,16611.0,0.02]
[1672603140127,0.37694714,16612.0,16611.0,0.3207]
[1672603150845,0.37694714,16612.0,16611.0,0.32056694]
[1672603159142,0.7955,16617.0,16611.0,0.37056694]
[1672603159358,0.37694714,16612.0,16611.0,0.06986694]
[1672603159675,0.37694714,16612.0,16611.0,0.37056694]
[1672603161034,0.37694714,16612.0,16611.0,0.3507]
[1672603161249,0.37694714,16612.0,16611.0,0.3707]
[1672603162941,0.37694714,16612.0,16611.0,0.9723]
[1672603163138,0.37694714,16612.0,16611.0,1.06192949]
[1672603163347,0.37694714,16612.0,16611.0,0.9723]
[1672603163565,0.37694714,16612.0,16611.0,1.06192949]
[1672603164408,0.37694714,16612.0,16611.0,0.9723]
[1672603164925,0.37694714,16612.0,16611.0,1.06192949]
[1672603165139,0.37694714,16612.0,16611.0,0.9723]
[1672603168707,0.05,16616.0,16611.0,0.9723]
[1672603168917,0.05,16616.0,16611.0,0.6716]
[1672603168918,0.37694714,16614.0,16611.0,0.6716]
[1672603169127,0.37694714,16614.0,16613.0,0.3007]
[1672603170909,0.37794714,16614.0,16613.0,0.3067]
[1672603173448,0.37794714,16614.0,16613.0,0.3007]
[1672603173660,0.37694714,16614.0,16613.0,0.3007]
[1672603173868,0.37794714,16614.0,16613.0,0.3007]
[1672603188789,0.37694714,16614.0,16613.0,0.3207]
[1672603201815,0.37694714,16614.0,16613.0,0.32055477]
[1672603202135,0.37794714,16614.0,16613.0,0.30055477]
[1672603204858,0.37694714,16614.0,16613.0,0.30055477]
[1672603205073,0.37694714,16614.0,16613.0,0.32055477]
[1672603210643,0.37694714,16614.0,16613.0,0.37055477]
[1672603219782,0.37694714,16614.0,16613.0,0.32055477]
[1672603224415,0.37694714,16614.0,16613.0,0.44355477]
[1672603224826,0.37694714,16614.0,16613.0,0.4437]
[1672603225043,0.37694714,16614.0,16613.0,0.3197]
[1672603225368,0.37694714,16614.0,16613.0,0.4017]
[1672603227562,0.37694714,16614.0,16613.0,0.4437]
[1672603228410,0.37694714,16614.0,16613.0,0.3007]
[1672603228610,0.37694714,16614.0,16613.0,0.4437]
[1672603229039,0.37694714,16614.0,16613.0,0.3007]
[1672603229249,0.37694714,16614.0,16613.0,0.4017]
[1672603229874,0.37694714,16614.0,16613.0,0.101]
[1672603230086,0.37694714,16614.0,16613.0,0.4017]
[1672603230507,0.37694714,16614.0,16613.0,0.3007]
[1672603230718,0.37694714,16614.0,16613.0,0.4437]
[1672603231450,0.37694714,16614.0,16613.0,0.4017]
[1672603231659,0.37694714,16614.0,16613.0,0.3007]
[1672603231876,0.37694714,16614.0,16613.0,0.4437]
[1672603232298,0.37694714,16614.0,16613.0,0.4017]
[1672603233975,0.37694714,16614.0,16613.0,0.3007]
[1672603234194,0.37694714,16614.0,16613.0,0.4437]
[1672603235039,0.05,16616.0,16614.0,0.05]
[1672603235250,0.05,16616.0,16615.0,0.3007]
[1672603236414,0.42694714,16616.0,16615.0,0.3007]
[1672603237455,0.42694714,16616.0,16615.0,0.3197]
[1672603238289,0.42694714,16616.0,16615.0,0.3007]
[1672603239036,0.42694714,16616.0,16615.0,0.3197]
[1672603239875,0.42694714,16616.0,16615.0,0.3007]
[1672603240713,0.42694714,16616.0,16612.0,0.05]
[1672603240923,0.05,16616.0,16615.0,0.3197]
[1672603241133,0.42694714,16616.0,16615.0,0.3197]
[1672603241338,0.42694714,16616.0,16615.0,0.3007]
[1672603242177,0.42694714,16616.0,16615.0,0.3197]
[1672603242814,0.42694714,16616.0,16615.0,0.3007]
[1672603243975,0.42694714,16616.0,16615.0,0.3197]
[1672603244499,0.42694714,16616.0,16615.0,0.3007]
[1672603245561,0.42694714,16616.0,16615.0,0.3067]
[1672603246600,0.42694714,16616.0,16615.0,0.3197]
[1672603249538,0.42694714,16616.0,16615.0,0.3007]
[1672603250591,0.42694714,16616.0,16615.0,0.3197]
[1672603250905,0.42694714,16616.0,16615.0,0.3007]
[1672603251114,0.42694714,16616.0,16615.0,0.3067]
[1672603251426,0.42694714,16616.0,16615.0,0.3007]
[1672603251642,0.42694714,16616.0,16615.0,0.3197]
[1672603252794,0.05,16616.0,16615.0,0.3197]
[1672603253005,0.42694714,16616.0,16615.0,0.3197]
[1672603253215,0.37694714,16616.0,16615.0,0.3197]
[1672603254482,0.37694714,16616.0,16615.0,0.3007]
[1672603254690,0.37694714,16616.0,16615.0,0.4017]
[1672603256061,0.37694714,16616.0,16615.0,0.40154552]
[1672603256680,0.37694714,16616.0,16615.0,0.3007]
[1672603257005,0.37694714,16616.0,16615.0,0.4017]
[1672603261206,0.37694714,16616.0,16615.0,0.3197]
[1672603261624,0.37694714,16616.0,16615.0,0.3007]
[1672603261833,0.37694714,16616.0,16615.0,0.4017]
[1672603271501,0.37694714,16616.0,16615.0,0.4437]
[1672603275386,0.37694714,16616.0,16615.0,0.3007]
[1672603275598,0.37694714,16616.0,16615.0,0.4437]
[1672603278333,0.37694714,16616.0,16615.0,0.3007]
[1672603278545,0.37694714,16616.0,16615.0,0.4917]
[1672603281271,0.37694714,16616.0,16615.0,0.4937]
[1672603286112,0.37675076,16616.0,16615.0,0.4937]
[1672603289685,0.37675076,16616.0,16615.0,0.3507]
[1672603289894,0.37675076,16616.0,16615.0,0.4517]
[1672603290312,0.37675076,16616.0,16615.0,0.4937]
[1672603290728,0.37675076,16616.0,16615.0,0.3507]
[1672603290939,0.37675076,16616.0,16615.0,0.4517]
[1672603292104,0.37675076,16616.0,16615.0,0.151]
[1672603292306,0.37675076,16616.0,16615.0,0.4937]
[1672603292834,0.37675076,16616.0,16615.0,0.193]
[1672603293053,0.37675076,16616.0,16615.0,0.4937]
[1672603293254,0.37675076,16616.0,16615.0,0.3507]
[1672603293471,0.37675076,16616.0,16615.0,0.4517]
[1672603295033,0.37675076,16616.0,16615.0,0.4937]
[1672603297041,0.37675076,16616.0,16615.0,0.4517]
[1672603299879,0.37675076,16616.0,16615.0,0.4937]
[1672603301449,0.37675076,16616.0,16615.0,0.193]
[1672603301873,0.37675076,16616.0,16615.0,0.4937]
[1672603313848,0.37675076,16616.0,16615.0,0.4517]